Cogmind - Beta 13 @@@ ROGUE MODE // 2024.07.17 @ 13:36:08 Player: Sionnis Result: Self-destructed Performance ------------- Evolutions (1) 500 Regions Visited (6) 1200 Robots Destroyed (49) 245 Value Destroyed (1064) 1064 Prototype IDs (28) 560 Alien Tech Used (0) 0 Bonus (401) 401 TOTAL SCORE: 3970 Bonus ------- High Alert Combat Kills 41 Follower Combat Kills 60 Aligned with FarCom 300 Cogmind --------- Core Integrity 74/400 Matter 256/300 Energy 240/240 System Corruption 0% Temperature Cool (0) Movement Rolling (130) Ox2 Location -8/Mines Parts ------- > --- POWER (1) -------- Nuclear Core > --- PROPULSION (2) --- Compact Wheel > --- UTILITY (2) ------ Large Storage Unit Targeting Computer > --- WEAPON (4) ------- Light Cannon Rocket Launcher Datajack > --- INVENTORY (15) --- Nuclear Core Nuclear Core Light Treads Light Treads Wheel Improved Heat Sink Light Assault Rifle Light Assault Rifle Light Cannon AWS/Autocannon Mini Grenade Launcher Mini Grenade Launcher Peak State ------------ > --- POWER ------------ Nuclear Core > --- PROPULSION ------- Light Treads Light Treads > --- UTILITY ---------- Large Storage Unit Targeting Computer > --- WEAPON ----------- AWS/Autocannon Rocket Launcher > --- INVENTORY -------- Nuclear Core Nuclear Core Light Treads Wheel Compact Wheel Improved Heat Sink Light Assault Rifle Light Assault Rifle Light Cannon Mini Grenade Launcher Mini Grenade Launcher Datajack [Rating: 41] Favorites ----------- Power Nuclear Core Engine Ion Engine Power Core Nuclear Core Propulsion Light Treads Treads Light Treads Wheel Compact Wheel Utility Large Storage Unit Storage Large Storage Unit Processor Targeting Computer Weapon Light Cannon Ballistic Gun Light Assault Rifle Ballistic Cannon Light Cannon Launcher Rocket Launcher Special Melee Weapon Datajack Build | -11 -10 -10 -9 -9 -9 -8 ------- Run | Yrd Mat Min Mat Min Exi Min Slots Evolved 2 | . . . 2 . . . Power . | . . . . . . . Propulsion . | . . . . . . . Utility . | . . . . . . . Weapon 2 | . . . 2 . . . Parts Attached 31 | 7 8 3 5 2 5 1 Power 2 | 1 . . 1 . . . Engine 1 | 1 . . . . . . Core 1 | . . . 1 . . . Reactor . | . . . . . . . Propulsion 6 | 2 1 1 . . 2 . Treads 5 | 2 1 1 . . 1 . Leg . | . . . . . . . Wheel 1 | . . . . . 1 . Hover . | . . . . . . . Flight . | . . . . . . . Utility 3 | 1 2 . . . . . Device . | . . . . . . . Storage 2 | 1 1 . . . . . Processor 1 | . 1 . . . . . Hackware . | . . . . . . . Protection . | . . . . . . . Artifact . | . . . . . . . Weapon 20 | 3 5 2 4 2 3 1 Energy Gun . | . . . . . . . Energy Cannon . | . . . . . . . Ballistic Gun 8 | 3 3 . 2 . . . Ballistic Cannon 9 | . 2 2 1 1 3 . Launcher 2 | . . . 1 1 . . Special Weapon . | . . . . . . . Impact Weapon . | . . . . . . . Slashing Weapon . | . . . . . . . Piercing Weapon . | . . . . . . . Special Melee Weapon 1 | . . . . . . 1 Unidentified Prototypes . | . . . . . . . Parts Lost 8 | . 3 1 . 2 . 2 Power 1 | . 1 . . . . . Propulsion 4 | . 1 1 . 1 . 1 Utility . | . . . . . . . Weapon 3 | . 1 . . 1 . 1 Highest Loss Streak 3 | . 3 1 . 2 . 2 To Critical Strikes 1 | . . . . . . 1 Average Slot Usage (%) 89 | . 88 84 94 89 92 88 Engine 2 | . 6 . . . . . Core 4 | . . . 6 11 11 11 Treads 21 | . 24 27 22 12 20 11 Storage 13 | . 15 14 11 11 11 11 Processor 12 | . 12 14 11 11 11 11 Ballistic Gun 15 | . 24 7 22 12 5 . Ballistic Cannon 15 | . 4 20 21 22 21 22 Launcher 3 | . . . . 10 11 11 Naked Turns . | . . . . . . . Heaviest Build 91 | 13 33 26 35 38 91 37 Greatest Support 40 | 40 40 40 40 40 40 16 Greatest Overweight (x) 2 | . 1 . . 1 2 2 Average Overweight (x) . | . . . . . . 2 Largest Inventory Capacity 15 | 8 15 15 15 15 15 15 Average Capacity 14 | 6 14 15 15 15 15 15 Most Carried 15 | 4 11 12 14 14 15 15 Average Carried 10 | 2 6 11 12 13 13 14 Final Capacity 15 | 8 15 15 15 15 15 15 Final Carried 15 | 4 11 12 14 13 15 14 Class Distribution -------------------- 53% | Mutant 46% | Gunner Dominant Class ---------------- Mutant | -10/Materials Mutant | -10/Mines Gunner | -9/Materials Gunner | -9/Mines Gunner | -9/Exiles Gunner | -8/Mines Resources | -11 -10 -10 -9 -9 -9 -8 ----------- Run | Yrd Mat Min Mat Min Exi Min Matter Collected 1148 | 261 279 87 226 . 295 . Remotely . | . . . . . . . Salvage Created 1271 | . 612 81 491 70 . 17 Parts 98 | . 39 9 43 4 . 3 Haulers Intercepted 1 | . 1 . . . . . Recyclers Shooed 2 | . 2 . . . . . Parts Field Recycled . | . . . . . . . Retrieved Matter . | . . . . . . . Parts Self-Destructed . | . . . . . . . Prevented . | . . . . . . . Kills | -11 -10 -10 -9 -9 -9 -8 ------- Run | Yrd Mat Min Mat Min Exi Min Combat Hostiles Destroyed 42 | . 11 5 18 4 . 4 Guns 18 | . 11 3 4 . . . Cannons 16 | . . 2 10 3 . 1 AOE 8 | . . . 4 1 . 3 Classes Destroyed 11 | . 7 . 2 2 . . Worker 1 | . 1 . . . . . Tunneler 1 | . . . 1 . . . Hauler 1 | . 1 . . . . . Recycler 2 | . 1 . 1 . . . Operator 2 | . 2 . . . . . Watcher 2 | . 1 . 1 . . . Swarmer 21 | . 3 4 10 . . 4 Grunt 15 | . 8 1 6 . . . Sentry 2 | . . . 2 . . . Demolisher 2 | . . . . 2 . . Assembled 2 | . . . . 2 . . Best Kill Streak 5 | . 4 3 5 4 . 4 Combat Bots Only 4 | . 4 3 4 4 . 4 Max Kills in Single Turn 3 | . 1 1 3 1 . 2 Gunslinging . | . . . . . . . Exploded 2 | . . . 2 1 . 2 Melee . | . . . . . . . Uniques/NPCs Destroyed . | . . . . . . . Combat | -11 -10 -10 -9 -9 -9 -8 -------- Run | Yrd Mat Min Mat Min Exi Min Hostile Shots Fired 187 | . 74 28 52 16 . 17 Missed 59 | . 21 10 24 2 . 2 Damage Taken 1865 | . 621 169 273 376 . 426 Core 416 | . 63 27 45 103 . 178 Absorbed by Shields . | . . . . . . . Core Remaining (%) 82 | 100 . 64 . . . . Volleys Fired 114 | . 55 13 36 6 1 3 Largest 4 | . 2 2 4 3 1 2 Hottest 110 | . 70 70 110 90 35 70 Shots Fired 290 | . 110 26 135 14 1 4 Gun 188 | . 104 14 66 4 . . Cannon 95 | . 6 12 66 8 1 2 Launcher 7 | . . . 3 2 . 2 Special . | . . . . . . . Kinetic 283 | . 110 26 132 12 1 2 Thermal . | . . . . . . . Explosive 7 | . . . 3 2 . 2 Electromagnetic . | . . . . . . . Robot Hit Streak 18 | . 18 4 16 2 . 2 Robot Miss Streak 5 | . 5 2 5 1 . 1 Penetration Max . | . . . . . . . Secondary Targets 1 | . 1 . . . . . Max Gunslinging Chain 1 | . 1 . . . . . Shots Hit Robots 174 | . 79 16 70 6 . 3 Core Hits 85 | . 32 8 31 10 . 4 Critical Kills 1 | . . . 1 . . . Critical Parts Destroyed 1 | . . 1 . . . . Critical Strikes 3 | . . 2 1 . . . Destroy 2 | . . 1 1 . . . Blast 1 | . . 1 . . . . Melee Attacks 2 | . . . . . . 2 Impact . | . . . . . . . Slashing . | . . . . . . . Piercing . | . . . . . . . Sneak Attacks . | . . . . . . . Combat Hostiles . | . . . . . . . Follow-up Attacks . | . . . . . . . Damage Inflicted 2815 | . 821 207 1208 235 . 344 Guns 1203 | . 782 71 341 9 . . Cannons 861 | . 36 136 563 106 . 20 Explosions 748 | . . . 304 120 . 324 Melee . | . . . . . . . Ramming 3 | . 3 . . . . . Kinetic 2064 | . 818 207 904 115 . 20 Thermal . | . . . . . . . Explosive 748 | . . . 304 120 . 324 Electromagnetic . | . . . . . . . Impact . | . . . . . . . Slashing . | . . . . . . . Piercing . | . . . . . . . Highest Corruption . | . . . . . . . Average Corruption . | . . . . . . . Corruption Purged . | . . . . . . . Corruption Blocked . | . . . . . . . Overload Shots . | . . . . . . . Overflow Damage 94 | . . . 32 11 . 51 Projectiles 24 | . . . 24 . . . Explosions 70 | . . . 8 11 . 51 Melee . | . . . . . . . Knockbacks 9 | . 2 . 5 2 . . Impact . | . . . . . . . Kinetic 8 | . 1 . 5 2 . . Secondary 1 | . 1 . . . . . Self-Inflicted Damage 158 | . . . 16 48 . 94 Shots 4 | . . . 1 1 . 2 Rammed 1 | . 1 . . . . . Targets Rammed 1 | . 1 . . . . . Kicked . | . . . . . . . Crushed . | . . . . . . . Highest Temperature 275 | . 22 10 275 117 . 6 Average Temperature 64 | . 4 6 81 74 . 4 Received Heat Transfer 430 | . 309 24 57 40 . . Siege Activations . | . . . . . . . Robots Corrupted . | . . . . . . . Combat Hostiles . | . . . . . . . Parts Fried . | . . . . . . . Impact Corruptions . | . . . . . . . Robots Melted . | . . . . . . . Combat Hostiles . | . . . . . . . Parts Melted . | . . . . . . . Heat Transferred . | . . . . . . . Parts Sabotaged . | . . . . . . . Parts Stolen . | . . . . . . . Parts Stripped . | . . . . . . . Power Chain Reactions . | . . . . . . . Alert | -11 -10 -10 -9 -9 -9 -8 ------- Run | Yrd Mat Min Mat Min Exi Min Peak Influence 638 | . 183 337 638 225 . 117 Initial 170 | . . 31 53 170 . . Average 155 | . 69 115 394 209 . 115 Maximum Alert Level 2 | . 1 1 2 1 . . Low Security (%) 70 | 100 99 88 11 14 . 100 Level 1 21 | . . 11 40 85 . . Level 2 8 | . . . 48 . . . Level 3 . | . . . . . . . Level 4 . | . . . . . . . Level 5 . | . . . . . . . High Security . | . . . . . . . Max Security . | . . . . . . . Squads Dispatched 5 | . 2 . 3 . . . Investigation . | . . . . . . . Extermination . | . . . . . . . Reinforcement 5 | . 2 . 3 . . . Assault . | . . . . . . . Garrison . | . . . . . . . Intercept . | . . . . . . . Searches Triggered . | . . . . . . . Construction Impeded 1 | . . . 1 . . . Haulers Reinforced . | . . . . . . . Active Scanning Responses . | . . . . . . . Cargo Convoy Interrupts . | . . . . . . . Stealth | -11 -10 -10 -9 -9 -9 -8 --------- Run | Yrd Mat Min Mat Min Exi Min Distress Signals 2 | . 1 . 1 . . . Communications Jammed . | . . . . . . . Distress Signals . | . . . . . . . Times Spotted 64 | . 20 7 23 6 1 7 Peak Tracking Total 9 | . 6 3 5 5 9 5 Tactical Retreats 2 | . . 1 1 . . . Traps | -11 -10 -10 -9 -9 -9 -8 ------- Run | Yrd Mat Min Mat Min Exi Min Traps Triggered . | . . . . . . . Indirectly . | . . . . . . . Trap Hack Attempts . | . . . . . . . Triggered . | . . . . . . . Disarmed . | . . . . . . . Reprogrammed . | . . . . . . . Reused . | . . . . . . . Traps Extracted . | . . . . . . . Installed . | . . . . . . . Triggered . | . . . . . . . Machines | -11 -10 -10 -9 -9 -9 -8 ---------- Run | Yrd Mat Min Mat Min Exi Min Machines Disabled 2 | . . . 1 . 1 . Max in Single Turn 1 | . . . 1 . 1 . Machines Repaired . | . . . . . . . Machines Dismantled . | . . . . . . . Machines Sabotaged . | . . . . . . . Overloaded Fab Kills . | . . . . . . . Hacking | -11 -10 -10 -9 -9 -9 -8 --------- Run | Yrd Mat Min Mat Min Exi Min Machines Accessed 5 | . 2 . 2 . 1 . Terminals 4 | . 2 . 2 . . . Fabricators . | . . . . . . . Repair Stations . | . . . . . . . Recycling Units . | . . . . . . . Scanalyzers . | . . . . . . . Garrison Access . | . . . . . . . Total Hacks 15 | . 9 . 5 . 1 . Successful 5 | . 4 . . . 1 . Failed 9 | . 4 . 5 . . . Catastrophic . | . . . . . . . Database Lockouts 1 | . 1 . . . . . Manual 13 | . 7 . 5 . 1 . Terminals 14 | . 9 . 5 . . . Fabricators . | . . . . . . . Repair Stations . | . . . . . . . Recycling Units . | . . . . . . . Scanalyzers . | . . . . . . . Garrison Access . | . . . . . . . Terminal Hacks 4 | . 3 . . . 1 . Robot Analysis 1 | . 1 . . . . . Prototype ID Bank 1 | . 1 . . . . . Hauler Manifests 1 | . 1 . . . . . Derelict Proto ID Bank 1 | . . . . . 1 . Fabricator Hacks . | . . . . . . . Repair Station Hacks . | . . . . . . . Recycling Unit Hacks . | . . . . . . . Scanalyzer . | . . . . . . . Garrison Access Hacks . | . . . . . . . Unauthorized Hacks 1 | . 1 . . . . . Terminals 1 | . 1 . . . . . Operators 1 | . 1 . . . . . Fabricators . | . . . . . . . Repair Stations . | . . . . . . . Recycling Units . | . . . . . . . Scanalyzers . | . . . . . . . Garrison Access . | . . . . . . . Data Cores Recovered . | . . . . . . . Used . | . . . . . . . Hacking Detections 4 | . 2 . 2 . . . Full Trace Events 2 | . . . 2 . . . Feedback Events . | . . . . . . . Feedback Blocked . | . . . . . . . Robot Schematics Acquired . | . . . . . . . Robots Built . | . . . . . . . Authchips . | . . . . . . . Time . | . . . . . . . Total Robot Build Rating . | . . . . . . . Part Schematics Acquired . | . . . . . . . Parts Built . | . . . . . . . Authchips . | . . . . . . . Time . | . . . . . . . Total Part Build Rating . | . . . . . . . Parts Repaired . | . . . . . . . Time . | . . . . . . . Parts Recycled . | . . . . . . . Recycled Matter . | . . . . . . . Retrieved Matter . | . . . . . . . Retrieved Components . | . . . . . . . Parts Scanalyzed . | . . . . . . . Part Schematics Acquired . | . . . . . . . Parts Damaged . | . . . . . . . Bothacking | -11 -10 -10 -9 -9 -9 -8 ------------ Run | Yrd Mat Min Mat Min Exi Min Used RIF Installer . | . . . . . . . Robots Hacked 1 | . . . . . . 1 Non-combat . | . . . . . . . Combat 1 | . . . . . . 1 Robot Hacks Applied 1 | . . . . . . 1 parse_system 1 | . . . . . . 1 Relay Couplers Released . | . . . . . . . Fabnet Peak Effective % . | . . . . . . . Robots Rewired . | . . . . . . . Allies Hacked . | . . . . . . . Hacks Repelled . | . . . . . . . Allies | -11 -10 -10 -9 -9 -9 -8 -------- Run | Yrd Mat Min Mat Min Exi Min Total Allies 1 | . . 1 . . . . Largest Group 1 | . . 1 1 . . . Highest-Rated Group 31 | . . 31 28 . . . Highest-Rated Ally 31 | . . 31 28 . . . Total Orders . | . . . . . . . Ally Attacks 19 | . . 19 . . . . Total Damage 298 | . . 298 . . . . Kills 6 | . . 6 . . . . Allies Corrupted . | . . . . . . . Allies Melted . | . . . . . . . Intel | -11 -10 -10 -9 -9 -9 -8 ------- Run | Yrd Mat Min Mat Min Exi Min Robot Analysis Total 1 | . 1 . . . . . Derelict Logs Recovered 2 | . . 2 . . . . Drone Launches . | . . . . . . . Drone Recoveries . | . . . . . . . Exploration | -11 -10 -10 -9 -9 -9 -8 ------------- Run | Yrd Mat Min Mat Min Exi Min Turns Passed 2795 | 91 917 486 418 328 433 122 Spaces Moved 1398 | 51 413 270 182 137 260 85 Core 3 | 3 . . . . . . Treads 1280 | 48 413 270 182 137 230 . Legs . | . . . . . . . Wheels 115 | . . . . . 30 85 Hover . | . . . . . . . Flight . | . . . . . . . Fastest Speed 50 | 50 160 160 160 160 130 130 Average Speed 169 | 153 175 160 160 227 161 130 Slowest Speed 320 | 160 240 160 160 240 320 130 Overloaded Moves . | . . . . . . . Propulsion Burnouts . | . . . . . . . Robots Hopped . | . . . . . . . Cave-ins Triggered . | . . . . . . . Exploration Rate (%) 44 | 5 71 71 36 45 60 25 Regions Visited 6 Branch Regions 4 Pre-discovered Areas 1 | . . 1 . . . . Known Exits Taken . | . . . . . . . Unknown Exits Taken 6 | 1 1 1 1 1 1 . Scrap Searched 1 | . . 1 . . . . Spaces Dug 16 | . . . . 16 . . Terrain Destroyed 61 | . . . 29 16 . 16 Melee . | . . . . . . . Projectile . | . . . . . . . AOE 61 | . . . 29 16 . 16 Terrain Rammed . | . . . . . . . Walls Destroyed . | . . . . . . . Machines Disabled . | . . . . . . . Actions | -11 -10 -10 -9 -9 -9 -8 --------- Run | Yrd Mat Min Mat Min Exi Min Total 1609 | 60 506 300 236 144 272 91 Wait 40 | . 16 13 8 . 3 . Move 1392 | 50 412 269 181 136 259 85 Hop . | . . . . . . . Pick Up 20 | 3 10 2 5 . . . Fast Attach 14 | 6 4 . 1 . 3 . Attach 7 | . 1 1 2 1 1 1 Detach 1 | . . . . . 1 . Swap 10 | 1 3 2 2 1 1 . Drop 8 | . 4 . 1 . 3 . Fire 114 | . 55 13 36 6 1 3 Melee 2 | . . . . . . 2 Ram . | . . . . . . . Kick . | . . . . . . . Crush 1 | . 1 . . . . . Escape Stasis . | . . . . . . . Rewire . | . . . . . . . Trap . | . . . . . . . Miscellaneous . | . . . . . . . Route ------- -11/Scrapyard -10/Materials (discovered 3 exits: *Mat / [*Min x2]) -10/Mines -9/Materials (discovered 2 exits: [*Mat] / [*Min]) -9/Mines (discovered 2 exits: [*Mat] / *Exi) -9/Exiles -8/Mines History --------- Turn | Location | Event 17 | -11/Scrapyard | Discovered new exit (range 15) 92 | -11/Scrapyard | Entered Materials 203 | -10/Materials | Discovered new exit (range 8) 310 | -10/Materials | Build established: Mutant 412 | -10/Materials | Discovered new exit (range 16) 451 | -10/Materials | Central database locked down 557 | -10/Materials | Lost 3 parts (1p1n1w) 785 | -10/Materials | Discovered new exit (range 12) 1009 | -10/Materials | Entered Mines 1016 | -10/Mines | Received a Rocket Launcher from a helpful Derelict 1066 | -10/Mines | Learned 2 Materials zone layouts 1245 | -10/Mines | Received a Mining Laser from a helpful Derelict 1326 | -10/Mines | Learned location of Storage (-9) 1475 | -10/Mines | Discovered new exit (range 8) 1495 | -10/Mines | Entered Materials 1495 | -9/Materials | Accompanied by 1 ally 1495 | -9/Materials | Evolved 2 slots: Weapon x2 1771 | -9/Materials | Discovered new exit (range 11) 1782 | -9/Materials | Build established: Gunner 1904 | -9/Materials | Discovered new exit (range 7) 1913 | -9/Materials | Entered Mines 1934 | -9/Mines | Assembled infested the area 2119 | -9/Mines | Discovered new exit (range 12) 2231 | -9/Mines | Discovered new exit (range 5) 2241 | -9/Mines | Entered Exiles 2287 | -9/Exiles | Met 8R-AWN 2316 | -9/Exiles | Met EX-HEX 2364 | -9/Exiles | Met EX-BIN 2382 | -9/Exiles | Aligned with FarCom system 2383 | -9/Exiles | Given EX-Vault access code 2425 | -9/Exiles | Opened EX-Vault 2441 | -9/Exiles | Found AWS/Autocannon 2497 | -9/Exiles | Warned to stay clear of 0b10 Research branches 2547 | -9/Exiles | Met EX-DEC 2636 | -9/Exiles | Attacked by the Exiles 2658 | -9/Exiles | Discovered new exit (range 10) 2674 | -9/Exiles | Left Exiles lab with AWS/Autocannon 2674 | -9/Exiles | Entered Mines 2785 | -8/Mines | CL-ANK came to Exiles' defense 2795 | -8/Mines | Core integrity fell below 50% 2795 | -8/Mines | Core integrity fell below 20% 2796 | -8/Mines | Self-destructed Last Messages --------------- GOAL=ESCAPE Destroyed Flight Unit. S-10 Pest destroyed. Destroyed Lgt. Ion Engine. S-10 Pest destroyed. T-07 Excavator is excavating. CL-ANK: "I came as fast as I could... Wait, it was you!" C-30 ARC bursts open, deploying its payload. S-10 Pest unfolds itself. Jacked CL-ANK... >>parse_system Reading system data... New IDs: Exp. Weapon Shielding Exp. Melee Analysis Suite CL-ANK's Mallet Critical hit (Smash). Lgt. Cannon destroyed. Lgt. Treads destroyed. Map ----- +----------------------------------------------------+ | ???????????????????????????????? | | ???????????????????????????????? | | ???????????????????????????????? | | ???????????????????????????????? | | ???????????????????????????????? | | ???????????????????????????????? | | ???????????????????????????#???? | | ?????????????????????????## ???? | | ?????????????????????????# ???? | | ?????????????????????????# ???? | | ?????????????????????##?## ???? | | ?????????????????????? ## " ???? | | ?????????????????????? "% ???? | | ??????????????????????? "#???? | | ???????????????????????? ##??? | | ????????????????????????# ##?? | | ???????????????????????## #?? | | ???????????????????????# #?? | | ???????????????????????# ##? | | ???????????????????????# #? | | ???????????????????????## #? | | ????????????????????????## ##? | | ?????????????????????????# s##?? | | ?????????????????????????# s#??? | | ????????????????????????##ss##?? | | ?????????????????????####@ #?? | | ????????????????????## b #?? | | ????????????###?????# #?? | | ???????????## #????# ##?? | | ??????###### ????# #??? | | ????# #???## ##?? | | ???# ##??# #?? | | ???? #### #?? | | ????? ## #?? | | ?????# ???# #?? | | ????## ???## #?? | | ????# ????## ## ##? | | ????# #???## ##### #? | | ????# #### ###???## #? | | ?????# ## ##??????## #? | | ??????# ##????????## #? | | ??????# #??????????# #? | | ??????## #????????### #? | | ???????## #????????# #? | | ???????## ##???????# #? | | ??????## #???????# ###? | | ??????# #??????## #??? | | ??????# ##??????# #??? | | ??????# #???????# #??? | | ??????## #### #?##????# #??? | +----------------------------------------------------+ Best States ------------- Heat Dissipation 28 Energy Generation 14 Energy Capacity 250 Matter Stores 300 Matter Capacity 300 Sight Range 16 Terrain Scan Density 10 Evasion (%) 40 Targeting Accuracy 5 Recoil Reduction 2 Item Schematics ----------------- None Robot Schematics ------------------ None Fabricated ------------ Nothing Alien Tech Used ----------------- None Achievements -------------- None Challenges ------------ None Game ------ Seed PhysicsPulseScreen Manual? 1 Play Time 00:14:33 Cumulative 431.7 hours Start 2024.07.17 @ 13:15:37 End 2024.07.17 @ 13:36:08 Sessions 1 Manual Loads 0 Difficulty Rogue Special Mode None Game No. 243 Rogue 243 Adventurer 0 Explorer 0 Win Type - Total 29 Types 18/2/2/3/1/1/1/1/0 Lore% 82 Gallery% 93 Achievement% 95 Wizard Run 0 Options --------- Layout 1 ASCII 0 Keyboard 0 Movement Numpad Keybinds 0 Fullscreen 1 Font 24/Smallcaps Map View 50x35 Zoom Use 0% Tactical HUD 1 Map Filters NONE Filters NONE Steam 1 RUN: 6539e84c-f471-43fe-97ff-21d5c14c2730